Cogmind - Beta 14 @@@ ROGUE MODE // 2024.08.23 @ 22:38:38 Player: THN-L0C Result: Destroyed by D-53 Grenadier with Mini Grenade Launcher Performance ------------- Evolutions (0) 0 Regions Visited (2) 400 Robots Destroyed (17) 85 Value Destroyed (370) 370 Prototype IDs (0) 0 Alien Tech Used (0) 0 Bonus (0) 0 TOTAL SCORE: 855 Bonus ------- None Cogmind --------- Core Integrity 0/250 Matter 275/300 Energy 159/160 System Corruption 0% Temperature Cool (0) Movement Rolling (110) Ox2 Location -10/Mines Parts ------- > --- POWER (1) -------- Light Nuclear Core > --- PROPULSION (2) --- Wheel > --- UTILITY (2) ------ Large Storage Unit Utility Shielding > --- WEAPON (2) ------- (None) > --- INVENTORY (15) --- Light Ion Engine Improved Heat Sink Improved Terrain Scanner Seismic Detector Light Assault Rifle Peak State ------------ > --- POWER ------------ Light Nuclear Core > --- PROPULSION ------- Light Treads Light Treads > --- UTILITY ---------- Large Storage Unit > --- WEAPON ----------- Assault Rifle Light Assault Rifle > --- INVENTORY -------- Light Ion Engine Improved Heat Sink Improved Terrain Scanner Seismic Detector Utility Shielding Light Assault Rifle [Rating: 9] Favorites ----------- Power Light Nuclear Core Engine Ion Engine Power Core Light Nuclear Core Propulsion Light Treads Treads Light Treads Wheel Wheel Utility Large Storage Unit Device Seismic Detector Storage Large Storage Unit Protection Utility Shielding Weapon Light Assault Rifle Ballistic Gun Light Assault Rifle Launcher Grenade Launcher Build | -11 -10 -10 ------- Run | Yrd Mat Min Slots Evolved . | . . . Power . | . . . Propulsion . | . . . Utility . | . . . Weapon . | . . . Parts Attached 15 | 8 4 3 Power 3 | 1 2 . Engine 2 | 1 1 . Core 1 | . 1 . Reactor . | . . . Propulsion 3 | 2 . 1 Treads 2 | 2 . . Leg . | . . . Wheel 1 | . . 1 Hover . | . . . Flight . | . . . Utility 5 | 2 2 1 Device 1 | 1 . . Storage 2 | 1 1 . Processor . | . . . Hackware . | . . . Protection 2 | . 1 1 Artifact . | . . . Weapon 4 | 3 . 1 Energy Gun . | . . . Energy Cannon . | . . . Ballistic Gun 3 | 3 . . Ballistic Cannon . | . . . Launcher 1 | . . 1 Special Weapon . | . . . Impact Weapon . | . . . Slashing Weapon . | . . . Piercing Weapon . | . . . Special Melee Weapon . | . . . Unidentified Prototypes . | . . . Parts Lost 7 | . 2 5 Power 1 | . 1 . Propulsion 2 | . . 2 Utility 1 | . 1 . Weapon 3 | . . 3 Highest Loss Streak 3 | . 1 3 To Critical Strikes . | . . . Average Slot Usage (%) 87 | . 88 84 Engine 2 | . 4 . Core 8 | . 5 14 Treads 23 | . 28 14 Wheel 4 | . . 11 Storage 14 | . 14 14 Protection 9 | . 6 13 Ballistic Gun 23 | . 28 15 Peak Build Rating 9 | 7 9 9 Average Rating 7 | 5 7 8 On Entrance 5 | . 7 9 Naked Turns . | . . . Heaviest Build 31 | 14 31 30 Greatest Support 40 | 40 40 40 Greatest Overweight (x) 8 | 3 . 8 Average Overweight (x) . | . . 1 Largest Inventory Capacity 15 | 8 15 15 Average Capacity 13 | 7 14 15 Most Carried 6 | 2 6 6 Average Carried 4 | . 4 5 Final Capacity 15 | 8 15 15 Final Carried 6 | 2 6 5 Class Distribution -------------------- 100% | Mutant Dominant Class ---------------- Mutant | -10/Materials Mutant | -10/Mines Resources | -11 -10 -10 ----------- Run | Yrd Mat Min Matter Collected 547 | 208 306 33 Remotely . | . . . Salvage Created 599 | 45 408 146 Parts 37 | 9 22 6 Haulers Intercepted . | . . . Recyclers Shooed 2 | . 1 1 Parts Field Recycled . | . . . Retrieved Matter . | . . . Parts Self-Destructed . | . . . Prevented . | . . . Kills | -11 -10 -10 ------- Run | Yrd Mat Min Combat Hostiles Destroyed 20 | . 9 11 Guns 11 | . 9 2 AOE 9 | . . 9 Classes Destroyed 6 | 2 3 1 Worker 2 | 1 . 1 Tunneler 3 | 2 1 . Recycler 1 | . 1 . Swarmer 3 | . 3 . Grunt 8 | . 6 2 Assembled 9 | . . 9 Best Kill Streak 9 | 3 5 9 Combat Bots Only 9 | . 4 9 Max Kills in Single Turn 4 | 1 1 4 Gunslinging . | . . . Exploded 4 | . . 4 Melee . | . . . Uniques/NPCs Destroyed . | . . . Combat | -11 -10 -10 -------- Run | Yrd Mat Min Hostile Shots Fired 98 | . 73 25 Missed 30 | . 23 7 Damage Taken 1053 | . 574 479 Core 256 | . 71 185 Absorbed by Shields . | . . . Redirected to Shielding 4 | . . 4 Core Remaining (%) 100 | 100 . . Volleys Fired 69 | 18 34 17 Largest 2 | 2 2 2 Hottest 40 | 40 40 40 Shots Fired 124 | 36 68 20 Gun 121 | 36 68 17 Cannon . | . . . Launcher 3 | . . 3 Special . | . . . Kinetic 121 | 36 68 17 Thermal . | . . . Explosive 3 | . . 3 Electromagnetic . | . . . Robot Hit Streak 10 | 7 10 9 Robot Miss Streak 5 | 3 5 2 Penetration Max . | . . . Secondary Targets 4 | . 4 . Max Gunslinging Chain 1 | . 1 . Shots Hit Robots 82 | 23 43 16 Core Hits 58 | 7 23 28 Critical Kills . | . . . Critical Parts Destroyed . | . . . Critical Strikes . | . . . Melee Attacks . | . . . Impact . | . . . Slashing . | . . . Piercing . | . . . Sneak Attacks . | . . . Combat Hostiles . | . . . Follow-up Attacks . | . . . Damage Inflicted 1395 | 206 461 728 Guns 806 | 205 461 140 Cannons . | . . . Explosions 585 | . . 585 Melee . | . . . Ramming 4 | 1 . 3 Kinetic 806 | 205 461 140 Thermal . | . . . Explosive 585 | . . 585 Electromagnetic . | . . . Impact . | . . . Slashing . | . . . Piercing . | . . . Highest Corruption . | . . . Average Corruption . | . . . Corruption Purged . | . . . Corruption Blocked . | . . . Overload Shots . | . . . Overflow Damage . | . . . Projectiles . | . . . Explosions . | . . . Melee . | . . . Knockbacks . | . . . Impact . | . . . Kinetic . | . . . Secondary . | . . . Self-Inflicted Damage 14 | . . 14 Shots 1 | . . 1 Rammed 2 | 1 . 1 Targets Rammed 2 | 1 . 1 Kicked . | . . . Crushed . | . . . Highest Temperature 42 | . 42 13 Average Temperature 10 | . 13 4 Received Heat Transfer 345 | . 312 33 Siege Activations . | . . . Robots Corrupted . | . . . Combat Hostiles . | . . . Parts Fried . | . . . Impact Corruptions . | . . . Robots Melted . | . . . Combat Hostiles . | . . . Parts Melted . | . . . Heat Transferred . | . . . Parts Sabotaged . | . . . Parts Stolen . | . . . Parts Stripped . | . . . Power Chain Reactions . | . . . Alert | -11 -10 -10 ------- Run | Yrd Mat Min Peak Influence 179 | 15 179 86 Initial 27 | . 9 27 Average 59 | 4 73 57 Maximum Alert Level . | . . . Low Security (%) 100 | 100 100 100 Level 1 . | . . . Level 2 . | . . . Level 3 . | . . . Level 4 . | . . . Level 5 . | . . . High Security . | . . . Max Security . | . . . Squads Dispatched . | . . . Investigation . | . . . Extermination . | . . . Reinforcement . | . . . Assault . | . . . Garrison . | . . . Intercept . | . . . Searches Triggered . | . . . Construction Impeded . | . . . Haulers Reinforced . | . . . Active Scanning Responses . | . . . Cargo Convoy Interrupts . | . . . Stealth | -11 -10 -10 --------- Run | Yrd Mat Min Distress Signals . | . . . Communications Jammed . | . . . Distress Signals . | . . . Times Spotted 38 | . 15 23 Peak Tracking Total 12 | . 4 12 Tactical Retreats . | . . . Traps | -11 -10 -10 ------- Run | Yrd Mat Min Traps Triggered . | . . . Indirectly . | . . . Trap Hack Attempts . | . . . Triggered . | . . . Disarmed . | . . . Reprogrammed . | . . . Reused . | . . . Traps Extracted . | . . . Installed . | . . . Triggered . | . . . Machines | -11 -10 -10 ---------- Run | Yrd Mat Min Machines Disabled . | . . . Max in Single Turn . | . . . Machines Repaired . | . . . Machines Dismantled . | . . . Machines Sabotaged . | . . . Overloaded Fab Kills . | . . . Hacking | -11 -10 -10 --------- Run | Yrd Mat Min Machines Accessed 5 | . 5 . Terminals 5 | . 5 . Fabricators . | . . . Repair Stations . | . . . Recycling Units . | . . . Scanalyzers . | . . . Garrison Access . | . . . Total Hacks 13 | . 13 . Successful 5 | . 5 . Failed 8 | . 8 . Catastrophic 2 | . 2 . Database Lockouts . | . . . Manual 10 | . 10 . Terminals 13 | . 13 . Fabricators . | . . . Repair Stations . | . . . Recycling Units . | . . . Scanalyzers . | . . . Garrison Access . | . . . Terminal Hacks 4 | . 4 . Robot Analysis 2 | . 2 . Branch Access Points 1 | . 1 . Terminal Index 1 | . 1 . Fabricator Hacks . | . . . Repair Station Hacks . | . . . Recycling Unit Hacks . | . . . Scanalyzer . | . . . Garrison Access Hacks . | . . . Unauthorized Hacks 1 | . 1 . Terminals 1 | . 1 . Botnet 1 | . 1 . Fabricators . | . . . Repair Stations . | . . . Recycling Units . | . . . Scanalyzers . | . . . Garrison Access . | . . . Data Cores Recovered . | . . . Used . | . . . Hacking Detections 5 | . 5 . Full Trace Events 1 | . 1 . Feedback Events . | . . . Feedback Blocked . | . . . Robot Schematics Acquired . | . . . Robots Built . | . . . Authchips . | . . . Time . | . . . Total Robot Build Rating . | . . . Part Schematics Acquired . | . . . Parts Built . | . . . Authchips . | . . . Time . | . . . Total Part Build Rating . | . . . Parts Repaired . | . . . Time . | . . . Parts Recycled . | . . . Recycled Matter . | . . . Retrieved Matter . | . . . Retrieved Components . | . . . Parts Scanalyzed . | . . . Part Schematics Acquired . | . . . Parts Damaged . | . . . Bothacking | -11 -10 -10 ------------ Run | Yrd Mat Min Used RIF Installer . | . . . Robots Hacked . | . . . Non-combat . | . . . Combat . | . . . Robot Hacks Applied . | . . . Relay Couplers Released . | . . . Fabnet Peak Effective % . | . . . Robots Rewired . | . . . Allies Hacked . | . . . Hacks Repelled . | . . . Allies | -11 -10 -10 -------- Run | Yrd Mat Min Total Allies . | . . . Largest Group . | . . . Highest-Rated Group . | . . . Highest-Rated Ally . | . . . Total Orders . | . . . Ally Attacks . | . . . Total Damage . | . . . Kills . | . . . Allies Corrupted . | . . . Allies Melted . | . . . Intel | -11 -10 -10 ------- Run | Yrd Mat Min Robot Analysis Total 2 | . 2 . Derelict Logs Recovered 1 | . . 1 Drone Launches . | . . . Drone Recoveries . | . . . Exploration | -11 -10 -10 ------------- Run | Yrd Mat Min Turns Passed 1290 | 172 713 405 Spaces Moved 601 | 70 374 157 Core 14 | 8 . 6 Treads 570 | 62 374 134 Legs . | . . . Wheels 17 | . . 17 Hover . | . . . Flight . | . . . Fastest Speed 50 | 50 160 110 Average Speed 176 | 151 160 227 Slowest Speed 450 | 200 160 450 Overloaded Moves . | . . . Propulsion Burnouts . | . . . Robots Hopped . | . . . Cave-ins Triggered . | . . . Exploration Rate (%) 47 | 5 82 55 Regions Visited 2 Branch Regions 1 Pre-discovered Areas . | . . . Known Exits Taken 1 | . 1 . Unknown Exits Taken 1 | 1 . . Scrap Searched 1 | . . 1 Spaces Dug . | . . . Terrain Destroyed 9 | . . 9 Melee . | . . . Projectile . | . . . AOE 9 | . . 9 Terrain Rammed . | . . . Walls Destroyed . | . . . Machines Disabled . | . . . Actions | -11 -10 -10 --------- Run | Yrd Mat Min Total 709 | 99 426 184 Wait 19 | 2 11 6 Move 599 | 69 373 157 Hop . | . . . Pick Up 4 | 1 3 . Fast Attach 10 | 7 1 2 Attach 1 | . . 1 Detach . | . . . Swap 4 | 1 3 . Drop 1 | . 1 . Fire 69 | 18 34 17 Melee . | . . . Ram 1 | . . 1 Kick . | . . . Crush 1 | 1 . . Escape Stasis . | . . . Rewire . | . . . Trap . | . . . Miscellaneous . | . . . Route ------- -11/Scrapyard -10/Materials (discovered 5 exits: [*Mat x3] / *Min x2) -10/Mines (discovered 2 exits: [*Mat x2]) History --------- Turn | Location | Event 19 | -11/Scrapyard | Discovered new exit (range 15) 173 | -11/Scrapyard | Entered Materials 314 | -10/Materials | Build established: Mutant 434 | -10/Materials | Discovered new exit (range 16) 490 | -10/Materials | Discovered new exit (range 14) 699 | -10/Materials | Discovered new exit (range 12) 804 | -10/Materials | Discovered new exit (range 3) 840 | -10/Materials | Identified exit to Mines 886 | -10/Materials | Entered Mines 1004 | -10/Mines | Discovered new exit (range 14) 1005 | -10/Mines | Learned Materials terminal intel 1005 | -10/Mines | Discovered new exit (range 10) 1257 | -10/Mines | Assembled infested the area 1264 | -10/Mines | YI-UF0 nonchalantly dropped a Grenade Launcher on the ground 1287 | -10/Mines | Core integrity fell below 50% 1289 | -10/Mines | Core integrity fell below 20% 1291 | -10/Mines | Destroyed by D-53 Grenadier with Mini Grenade Launcher Last Messages --------------- 01281_ as-26467 destroyed. 01281_ as-17755 destroyed. 01282_ YI-UF0 mumbles something. 01283_ K-01 Serf collects debris. 01283_ as-46824 destroyed. 01283_ as-76230 destroyed. 01284_ YI-UF0: "Whaaaaaaaa!" 01285_ as-77340 destroyed. 01285_ as-16461 destroyed. 01285_ as-91629 destroyed. 01286_ K-01 Serf destroyed. 01286_ YI-UF0: "BOOSH!" 01286_ as-19896 destroyed. 01287_ C-30 ARC bursts open, deploying its payload. 01287_ D-53 Grenadier unfolds itself. 01288_ Lgt. Treads destroyed. 01288_ Grenade Launcher destroyed. 01289_ The unstable cave ceiling collapses. 01290_ as-06540 destroyed. 01290_ Lgt. Assault Rifle destroyed. Map ----- +----------------------------------------------------+ | ??####????? #??## ### #????###??? | | ??????????# ##??# #???## #### | | ??????????# ####???# ###???# | | ??????????##???????## ##?????# | | ????????????????????# #??????# | | ????????????????????## #??????# #? | | ?????????????????????# #??????# #?? | | ????????????????????## #?????## #?? | | ????????????????????# < ####### #?? | | ????????????????????# [ #??? | | ????????????????????# #???? | | ????????????????????## ###### ##??? | | ?????????????????????## ##???# ##?? | | ??????????????????????####????# ##? | | ?????????????????????????????## ## | | ?????????????????????????????# # | | ?????????????????????????????# ## | | ?????????????###?????????????## #### | | ????????????? ??????????????####??### | | ?????????????# ??????????????????????## | | ?????????????# ???????????????????????# | | ?????????????? ###????????????????????# | | ?????????????? % #????????????#####??## | | ??????????????? ############## #### | | ?????????????### ## ## | | ????????????## @ # | | ???????????## %dd # | | ???????????# # | | ???????????# g ## | | ???????????# ### ##? | | ???????????# ##?## ####?? | | ??????????# ##???########????? | | ?????????# % ##????????????????? | | ????????# #?????????????????? | | ????????# ?????????????????? | | ????????## ????????????????? | | ?????????## a # ####???????????????? | | ??????????# # #??????????????????? | | ??????????# %a # #??????????????????? | | ??????????# #??????????????????? | | ??????????# #?#??????????????????? | | ??????????# ####????????????????????? | | ????????????? ????????????????????????? | | ??????????????? ????????????????????????? | | ????????????????????????????????????????? | | ????????????????????????????????????????? | | ????????????????????????????????????????? | | ????????????????????????????????????????? | | ????????????????????????????????????????? | | ????????????????????????????????????????? | +----------------------------------------------------+ Best States ------------- Heat Dissipation 25 Energy Generation 14 Energy Capacity 250 Matter Stores 300 Matter Capacity 300 Sight Range 16 Terrain Scan Density 10 Armor Coverage 150 Utility Shielding 33 Evasion (%) 40 Recoil Reduction 2 Item Schematics ----------------- None Robot Schematics ------------------ None Fabricated ------------ Nothing Alien Tech Used ----------------- None Achievements -------------- None Challenges ------------ None Game ------ Seed DefenseAuthchipScythe Manual? 0 Play Time 00:06:13 Cumulative 114.6 hours Start 2024.08.23 @ 22:33:50 End 2024.08.23 @ 22:38:38 Sessions 1 Manual Loads 0 Difficulty Rogue Special Mode None Game No. 96 Rogue 96 Adventurer 0 Explorer 0 Win Type - Total 0 Types 0/0/0/0/0/0/0/0/0 Lore% 50 Gallery% 59 Achievement% 48 Wizard Run 0 Options --------- Layout 2 ASCII 0 Keyboard 1 Movement Vi Keybinds 0 Fullscreen 1 Font 32/SmallcapsGlow Map View 77x44 Zoom Use 0% Tactical HUD 1 Map Filters NONE Filters NONE Steam 1 RUN: 8948e99f-7b0b-45cc-bbc6-cb64aea5573f